fUSD/lending_fUSD_20260420
["ID","MTS","AMOUNT","RATE_DAILY","PERIOD"]
[420871114,1776682640479,500.0,7.542e-05,2]
[420871115,1776682640513,500.0,7.542e-05,2]
[420871116,1776682640586,432.05334995,7.542e-05,2]
[420871117,1776682640630,500.0,7.542e-05,2]
[420871118,1776682640665,500.0,7.542e-05,2]
[420871119,1776682640716,500.0,7.542e-05,2]
[420871120,1776682640759,371.84796123,7.542e-05,2]
[420871121,1776682640786,128.15203877,7.542e-05,2]
[420871122,1776682647599,718.641067,7.542e-05,2]
[420871123,1776682647648,718.641067,7.542e-05,2]
[420871124,1776682647685,718.641067,7.542e-05,2]
[420871125,1776682647729,718.641067,7.542e-05,2]
[420871126,1776682650142,718.641067,7.542e-05,2]
[420871127,1776682650191,718.641067,7.542e-05,2]
[420871128,1776682650237,718.641067,7.542e-05,2]
[420871129,1776682650286,718.641067,7.542e-05,2]
[420871130,1776682650328,718.641067,7.542e-05,2]
[420871131,1776682650370,718.641067,7.542e-05,2]
[420871132,1776682650419,718.641067,7.542e-05,2]
[420871133,1776682650466,718.641067,7.542e-05,2]
[420871134,1776682650525,718.641067,7.542e-05,2]
[420871135,1776682650617,529.52409023,7.542e-05,2]
[420871136,1776682650648,189.11697677,7.542e-05,2]
[420871137,1776682650699,718.641067,7.542e-05,2]
[420871138,1776682650737,718.641067,7.542e-05,2]
[420871139,1776682650783,718.641067,7.542e-05,2]
[420871140,1776682650825,718.641067,7.542e-05,2]
[420871141,1776682650882,718.641067,7.542e-05,2]
[420871142,1776682664877,500.0,7.542e-05,2]
[420871143,1776682681335,300.0,7.542e-05,2]
[420871144,1776682684879,500.0,7.542e-05,2]
[420871145,1776682684939,317.20422173,7.542e-05,2]
[420871146,1776682685671,249.0,7.543e-05,2]
[420871147,1776682691523,500.0,7.542e-05,2]
[420871148,1776682691725,285.87185101,7.542e-05,2]
[420871150,1776682698957,500.0,7.542e-05,2]
[420871151,1776682702085,500.0,7.542e-05,2]
[420871152,1776682702157,500.0,7.542e-05,2]
[420871153,1776682702189,471.66108961,7.542e-05,2]
[420871154,1776682703057,500.0,7.542e-05,2]
[420871155,1776682703092,160.2669701,7.542e-05,2]
[420871156,1776682715298,292.637621,7.542e-05,2]
[420871157,1776682716611,339.11212143,7.542e-05,2]
[420871158,1776682757843,154.0,7.543e-05,3]
[420871159,1776682767833,147.93381335,7.543e-05,2]
[420871160,1776682767857,852.06618665,7.543e-05,2]
[420871161,1776682768944,1000.0,7.543e-05,2]
[420871162,1776682770029,1000.0,7.543e-05,2]
[420871163,1776682771115,1016.65344243,7.543e-05,2]
[420871164,1776682802917,150.0,7.542e-05,2]
[420871165,1776682811434,156.0,7.543e-05,3]
[420871166,1776682811469,154.0,7.543e-05,3]
[420871167,1776682835558,300.0,7.542e-05,2]
[420871170,1776682865453,154.0,7.543e-05,3]
[420871171,1776682870638,-4000.0,7.543e-05,2]
[420871176,1776682921199,300.0,7.542e-05,2]
[420871178,1776682927339,154.0,7.543e-05,3]
[420871179,1776682968053,500.0,7.542e-05,2]
[420871180,1776682968104,489.56238626,7.542e-05,2]
[420871181,1776682968195,500.0,7.542e-05,2]
[420871182,1776682982761,150.0,7.542e-05,2]
[420871183,1776682986068,500.0,7.542e-05,2]
[420871184,1776682986103,500.0,7.542e-05,2]
[420871185,1776682986138,442.2327337,7.542e-05,2]
[420871186,1776682986177,154.0,7.543e-05,3]
[420871187,1776683000737,500.0,7.542e-05,2]
[420871188,1776683000787,500.0,7.542e-05,2]
[420871189,1776683000844,442.2327337,7.542e-05,2]
[420871190,1776683012424,85.26251726,7.542e-05,2]
[420871191,1776683012447,214.73748274,7.542e-05,2]
[420871192,1776683016553,500.0,7.542e-05,2]
[420871193,1776683016592,500.0,7.542e-05,2]
[420871194,1776683016639,500.0,7.542e-05,2]
[420871195,1776683016674,500.0,7.542e-05,2]
[420871196,1776683016721,596.01892066,7.542e-05,2]
[420871197,1776683033874,500.0,7.542e-05,2]
[420871198,1776683034414,500.0,7.542e-05,2]
[420871199,1776683034458,442.2327337,7.542e-05,2]
[420871206,1776683043287,300.0,7.542e-05,2]
[420871208,1776683045755,154.0,7.543e-05,3]
[420871209,1776683047914,500.0,7.542e-05,2]
[420871210,1776683047958,500.0,7.542e-05,2]
[420871211,1776683048001,442.2327337,7.542e-05,2]
[420871212,1776683062313,500.0,7.542e-05,2]
[420871213,1776683062354,500.0,7.542e-05,2]
[420871214,1776683062401,442.2327337,7.542e-05,2]
[420871215,1776683072311,500.0,7.542e-05,2]
[420871216,1776683072355,500.0,7.542e-05,2]
[420871217,1776683072400,500.0,7.542e-05,2]
[420871218,1776683072452,596.01892066,7.542e-05,2]
[420871219,1776683072572,312.53647484,7.542e-05,2]
[420871220,1776683072601,187.46352516,7.542e-05,2]
[420871221,1776683091389,500.0,7.542e-05,2]
[420871222,1776683091439,500.0,7.542e-05,2]
[420871223,1776683091499,442.2327337,7.542e-05,2]
[420871224,1776683101186,1200.0,7.542e-05,2]
[420871225,1776683101225,227.0,7.542e-05,2]
[420871226,1776683108459,500.0,7.542e-05,2]
[420871227,1776683108506,500.0,7.542e-05,2]
[420871228,1776683108553,442.2327337,7.542e-05,2]
[420871229,1776683112280,156.0,7.543e-05,3]
[420871230,1776683122421,500.0,7.542e-05,2]
[420871231,1776683122460,500.0,7.542e-05,2]
[420871232,1776683122512,500.0,7.542e-05,2]
[420871233,1776683122553,500.0,7.542e-05,2]
[420871234,1776683122609,596.01892066,7.542e-05,2]
[420871235,1776683140138,500.0,7.542e-05,2]
[420871236,1776683140181,500.0,7.542e-05,2]
[420871237,1776683140237,442.2327337,7.542e-05,2]
[420871238,1776683155498,500.0,7.542e-05,2]
[420871239,1776683155551,500.0,7.542e-05,2]
[420871240,1776683155603,306.82935308,7.542e-05,2]
[420871241,1776683155631,135.40338062,7.542e-05,2]
[420871242,1776683162727,150.0,7.542e-05,2]
[420871243,1776683163205,300.0,7.542e-05,2]
[420871248,1776683166622,154.0,7.543e-05,3]
[420871249,1776683173293,500.0,7.542e-05,2]
[420871250,1776683173329,500.0,7.542e-05,2]
[420871251,1776683173366,500.0,7.542e-05,2]
[420871252,1776683173401,500.0,7.542e-05,2]
[420871253,1776683173452,596.01892066,7.542e-05,2]
[420871254,1776683189598,500.0,7.542e-05,2]
[420871255,1776683189650,500.0,7.542e-05,2]
[420871256,1776683189706,442.2327337,7.542e-05,2]
[420871257,1776683203705,500.0,7.542e-05,2]
[420871258,1776683203794,500.0,7.542e-05,2]
[420871259,1776683203832,500.0,7.542e-05,2]
[420871260,1776683203869,500.0,7.542e-05,2]
[420871261,1776683203908,596.01892066,7.542e-05,2]
[420871262,1776683221466,500.0,7.542e-05,2]
[420871263,1776683221515,500.0,7.542e-05,2]
[420871264,1776683221570,442.2327337,7.542e-05,2]
[420871265,1776683236571,500.0,7.542e-05,2]
[420871266,1776683236629,500.0,7.542e-05,2]
[420871267,1776683236679,184.10331066,7.542e-05,2]
[420871268,1776683236707,258.12942304,7.542e-05,2]
[420871269,1776683246880,500.0,7.542e-05,2]
[420871270,1776683246932,500.0,7.542e-05,2]
[420871271,1776683246989,442.2327337,7.542e-05,2]
[420871272,1776683260862,500.0,7.542e-05,2]
[420871273,1776683260915,500.0,7.542e-05,2]
[420871274,1776683260972,442.2327337,7.542e-05,2]
[420871276,1776683274778,500.0,7.542e-05,2]
[420871277,1776683274831,500.0,7.542e-05,2]
[420871278,1776683274886,500.0,7.542e-05,2]
[420871279,1776683274950,500.0,7.542e-05,2]
[420871280,1776683274998,596.01892066,7.542e-05,2]
[420871281,1776683287090,154.0,7.543e-05,3]
[420871282,1776683294815,500.0,7.542e-05,2]
[420871283,1776683294870,500.0,7.542e-05,2]
[420871284,1776683294928,442.2327337,7.542e-05,2]
[420871285,1776683308593,500.0,7.542e-05,2]
[420871286,1776683308647,442.2327337,7.542e-05,2]
[420871287,1776683308710,500.0,7.542e-05,2]
[420871288,1776683326409,500.0,7.542e-05,2]
[420871289,1776683326459,500.0,7.542e-05,2]
[420871290,1776683326508,500.0,7.542e-05,2]
[420871291,1776683326575,500.0,7.542e-05,2]
[420871292,1776683326627,596.01892066,7.542e-05,2]
[420871293,1776683338301,500.0,7.542e-05,2]
[420871294,1776683338352,500.0,7.542e-05,2]
[420871295,1776683338897,442.2327337,7.542e-05,2]
[420871296,1776683345570,150.0,7.542e-05,2]
[420871297,1776683346217,177.27395758,7.542e-05,2]
[420871298,1776683346241,122.72604242,7.542e-05,2]
[420871299,1776683352425,154.0,7.543e-05,3]
[420871300,1776683358633,500.0,7.542e-05,2]
[420871301,1776683358670,500.0,7.542e-05,2]
[420871302,1776683358718,442.2327337,7.542e-05,2]
[420871303,1776683372522,500.0,7.542e-05,2]
[420871304,1776683372570,500.0,7.542e-05,2]
[420871305,1776683372623,500.0,7.542e-05,2]
[420871306,1776683372681,500.0,7.542e-05,2]
[420871307,1776683372847,596.01892066,7.542e-05,2]
[420871308,1776683390297,500.0,7.542e-05,2]
[420871309,1776683390356,500.0,7.542e-05,2]
[420871310,1776683390437,442.2327337,7.542e-05,2]
[420871312,1776683432266,-195.1704,7.543e-05,2]
[420871313,1776683432279,-500.0,7.543e-05,2]
[420871314,1776683432289,-273.8863548,7.543e-05,2]
[420871315,1776683432298,-2260.82694603,7.59e-05,2]
[420871316,1776683432310,-2739.17305397,7.59e-05,2]
[420871317,1776683432320,-1200.0,7.636e-05,2]
[420871318,1776683432329,-300.0,7.873e-05,2]
[420871319,1776683432339,-14318.98759751,8e-05,2]
[420871320,1776683432349,-2619.875406,8.178e-05,2]
[420871321,1776683432358,-150.0,8.22e-05,2]
[420871322,1776683432369,-255.0,8.296e-05,2]
[420871324,1776683432379,-5000.0,8.297e-05,2]
[420871326,1776683432388,-1369.78154517,8.297e-05,2]
[420871327,1776683432398,-193.0,8.297e-05,2]
[420871328,1776683432407,-370.91143343,8.297e-05,2]
[420871329,1776683432417,-1063.18,8.333e-05,2]
[420871330,1776683432427,-1852.42,8.46e-05,2]
[420871331,1776683432437,-150.0,8.52e-05,2]
[420871332,1776683432446,-1500.0,8.534e-05,2]
[420871333,1776683432456,-500.0,8.57e-05,2]
[420871334,1776683432466,-168.0,8.574e-05,2]
[420871335,1776683432475,-303.0,8.574e-05,2]
[420871336,1776683432486,-257.0,8.591e-05,2]
[420871337,1776683432495,-150.0,8.82e-05,2]
[420871338,1776683432505,-262.09602972,8.999e-05,2]
[420871340,1776683432514,-500.0,8.999e-05,2]
[420871342,1776683432524,-386.42554836,8.999e-05,2]
[420871343,1776683432534,-500.0,8.999e-05,2]
[420871344,1776683432543,-500.0,8.999e-05,2]
[420871345,1776683432552,-500.0,8.999e-05,2]
[420871346,1776683432562,-500.0,8.999e-05,2]
[420871347,1776683432572,-500.0,8.999e-05,2]
[420871348,1776683432582,-411.86067639,8.999e-05,2]
[420871349,1776683432592,-500.0,8.999e-05,2]
[420871350,1776683432602,-500.0,8.999e-05,2]
[420871351,1776683432611,-500.0,8.999e-05,2]
[420871352,1776683432621,-500.0,8.999e-05,2]
[420871353,1776683432631,-500.0,8.999e-05,2]
[420871354,1776683432640,-266.58288199,8.999e-05,2]
[420871355,1776683432651,-500.0,8.999e-05,2]
[420871356,1776683432661,-150.0,8.999e-05,2]
[420871357,1776683432670,-150.0,8.999e-05,2]
[420871358,1776683432680,-169.6445203,8.999e-05,2]
[420871359,1776683432690,-150.0,8.999e-05,2]
[420871360,1776683432700,-150.0,8.999e-05,2]
[420871361,1776683432710,-150.0,8.999e-05,2]
[420871362,1776683432720,-166101.30537495,9e-05,3]
[420871363,1776683432732,-7580.27026817,9e-05,3]
[420871364,1776683432744,-43689.01832823,9e-05,3]
[420871365,1776683432757,-94872.97644595,9e-05,3]
[420871366,1776683432769,-11031.12972702,9e-05,3]
[420871385,1776683438977,-669.57770617,9e-05,3]
[420871386,1776683438989,-524.0,9e-05,3]
[420871387,1776683439012,-287.68959405,9e-05,3]
[420871388,1776683439024,-253.0338,9e-05,3]
[420871389,1776683439110,-14176.78057607,9e-05,3]
[420871390,1776683439119,-49966.03005159,9.04e-05,2]
[420871391,1776683439129,-150.0,9.12e-05,2]
[420871392,1776683439138,-402.0,9.126e-05,2]
[420871393,1776683439148,-150.0,9.42e-05,2]
[420871394,1776683439157,-150.0,9.72e-05,2]
[420871395,1776683439166,-578.20924308,9.729e-05,2]
[420871396,1776683439176,-200.0,9.729e-05,2]
[420871397,1776683439186,-500.0,9.729e-05,2]
[420871398,1776683439195,-670.58624095,9.729e-05,2]
[420871399,1776683439205,-1328.27659266,9.729e-05,2]
[420871400,1776683439215,-7476.86321141,9.729e-05,2]
[420871401,1776683439228,-1405.82530339,9.729e-05,2]
[420871402,1776683439238,-194.72792766,9.729e-05,2]
[420871403,1776683439247,-2000.0,9.729e-05,2]
[420871404,1776683439256,-743.50770149,9.729e-05,2]
[420871405,1776683439266,-2000.0,9.729e-05,2]
[420871406,1776683439276,-618.20119968,9.729e-05,2]
[420871407,1776683439285,-151.0,9.729e-05,2]
[420871408,1776683439294,-174.61919141,9.729e-05,2]
[420871409,1776683439303,-152.0,9.729e-05,2]
[420871410,1776683439313,-225.60716926,9.729e-05,2]
[420871411,1776683439323,-279.9045709,9.729e-05,2]
[420871412,1776683439332,-219.23011724,9.729e-05,2]
[420871413,1776683439341,-227.34163157,9.729e-05,2]
[420871414,1776683439351,-235.75327194,9.729e-05,2]
[420871415,1776683439360,-244.476143,9.729e-05,2]
[420871416,1776683439369,-253.52176029,9.729e-05,2]
[420871417,1776683439379,-262.90206542,9.729e-05,2]
[420871418,1776683439388,-401.95167448,9.729e-05,2]
[420871419,1776683439397,-194.72792766,9.729e-05,2]
[420871420,1776683439407,-151.0,9.729e-05,2]
[420871421,1776683439416,-500.0,9.784e-05,2]
[420871422,1776683439426,-669.47935067,9.784e-05,2]
[420871423,1776683439435,-151.0,9.784e-05,2]
[420871424,1776683439444,-500.0,9.786e-05,2]
[420871425,1776683439454,-500.0,9.839e-05,2]
[420871426,1776683439463,-151.0,9.839e-05,2]
[420871427,1776683439472,-500.0,9.894e-05,2]
[420871428,1776683439482,-151.0,9.894e-05,2]
[420871429,1776683439491,-500.0,9.949e-05,2]
[420871430,1776683439500,-151.0,9.949e-05,2]
[420871431,1776683439510,-35083.70732361,0.0001,2]
[420871432,1776683439522,-1826.1386616,0.0001,2]
[420871433,1776683440266,-3319.34564539,0.0001,2]
[420871434,1776683440320,-3549.4941997,0.0001,2]
[420871435,1776683440375,-8107.34694089,0.0001,2]
[420871436,1776683440590,-21915.96722881,0.0001,2]
[420871437,1776683440600,-561.10535588,0.0001,2]
[420871438,1776683440609,-6784.62432094,0.0001,2]
[420871439,1776683440619,-500.0,0.0001,2]
[420871440,1776683440628,-151.0,0.0001,2]
[420871441,1776683440637,-500.0,0.0001,2]
[420871442,1776683440647,-151.0,0.0001,2]
[420871443,1776683440656,-500.0,0.0001,2]
[420871444,1776683440666,-151.0,0.0001,2]
[420871445,1776683440675,-500.0,0.0001,2]
[420871446,1776683440684,-151.0,0.0001,2]
[420871447,1776683440693,-500.0,0.0001,2]
[420871448,1776683440702,-151.0,0.0001,2]
[420871449,1776683440712,-500.0,0.0001,2]
[420871450,1776683440720,-151.0,0.0001,2]
[420871451,1776683440730,-500.0,0.0001,2]
[420871452,1776683440739,-151.0,0.0001,2]
[420871453,1776683440748,-500.0,0.0001,2]
[420871454,1776683440757,-151.0,0.0001,2]
[420871455,1776683440766,-500.0,0.0001,2]
[420871456,1776683440775,-151.0,0.0001,2]
[420871457,1776683440785,-500.0,0.0001,2]
[420871458,1776683440794,-151.0,0.0001,2]
[420871459,1776683440803,-500.0,0.0001,2]
[420871460,1776683440813,-151.0,0.0001,2]
[420871461,1776683440822,-200.0,0.0001,2]
[420871462,1776683440831,-500.0,0.0001,2]
[420871463,1776683440841,-151.0,0.0001,2]
[420871464,1776683440850,-500.0,0.0001,2]
[420871466,1776683440859,-500.0,0.0001,2]
[420871467,1776683440868,-567.31219984,0.0001,2]
[420871468,1776683440877,-151.0,0.0001,2]
[420871469,1776683440887,-151.0,0.0001,2]
[420871470,1776683440897,-314.10851778,0.0001,2]
[420871471,1776683440906,-500.0,0.00010004,2]
[420871472,1776683440915,-151.0,0.00010004,2]
[420871473,1776683440925,-150.0,0.0001002,2]
[420871474,1776683440934,-500.0,0.00010059,2]
[420871475,1776683440943,-151.0,0.00010059,2]
[420871476,1776683440953,-250.0,0.00010083,2]
[420871477,1776683440962,-359.0,0.00010113,2]
[420871478,1776683440971,-500.0,0.00010114,2]
[420871479,1776683440980,-151.0,0.00010114,2]
[420871480,1776683440990,-400.0,0.00010133,2]
[420871481,1776683440999,-500.0,0.00010169,2]
[420871482,1776683441008,-151.0,0.00010169,2]
[420871483,1776683441018,-5530.0,0.000102,3]
[420871484,1776683441027,-1696.0,0.00010219,2]
[420871485,1776683441036,-500.0,0.00010224,2]
[420871487,1776683441045,-151.0,0.00010224,2]
[420871488,1776683441055,-553.0,0.0001024,2]
[420871489,1776683441064,-250.0,0.00010274,2]
[420871490,1776683441073,-3782.131,0.00010274,2]
[420871491,1776683441082,-200.0,0.00010277,2]
[420871492,1776683441092,-216.60931017,0.00010277,2]
[420871493,1776683441101,-771.01748645,0.00010277,2]
[420871494,1776683441111,-181.08010149,0.00010277,2]
[420871495,1776683441120,-290.26104003,0.00010277,2]
[420871496,1776683441129,-201.93286099,0.00010277,2]
[420871497,1776683441139,-500.0,0.00010279,2]
[420871498,1776683441148,-151.0,0.00010279,2]
[420871499,1776683441157,-150.0,0.0001032,2]
[420871500,1776683441167,-500.0,0.00010334,2]
[420871501,1776683441176,-151.0,0.00010334,2]
[420871502,1776683441186,-164.47,0.00010347,2]
[420871503,1776683441195,-5530.0,0.000104,5]
[420871504,1776683441204,-160.0,0.00010591,2]
[420871505,1776683441214,-5000.0,0.000106,2]
[420871506,1776683441223,-150.0,0.0001062,2]
[420871507,1776683441232,-39997.2943419,0.000107,2]
[420871508,1776683441242,-622.0,0.00010714,2]
[420871509,1776683441251,-1048.659,0.00010714,2]
[420871510,1776683441260,-945.486,0.00010714,2]
[420871511,1776683441271,-150.164,0.00010714,2]
[420871512,1776683441280,-1265.0,0.00010714,2]
[420871513,1776683441289,-927.0,0.00010714,2]
[420871514,1776683441298,-1229.979,0.00010714,2]
[420871515,1776683441307,-6030.0,0.00010714,2]
[420871516,1776683441316,-2474.0,0.00010714,2]
[420871517,1776683441326,-3632.048,0.00010744,2]
[420871518,1776683441335,-237.7,0.00010744,2]
[420871519,1776683441344,-150.0,0.000108,2]
[420871520,1776683441353,-150.1208185,0.000108,2]
[420871521,1776683441362,-298.8066879,0.000108,2]
[420871522,1776683441372,-150.0,0.000108,2]
[420871523,1776683441381,-150.0,0.000108,2]
[420871524,1776683441391,-150.0,0.000108,2]
[420871525,1776683441400,-150.00000001,0.000108,2]
[420871526,1776683441409,-150.0,0.000108,2]
[420871527,1776683441419,-150.0,0.000108,2]
[420871528,1776683441428,-150.0,0.000108,2]
[420871529,1776683441437,-209.40437684,0.00010825,2]
[420871530,1776683441446,-150.0,0.00010892,2]
[420871531,1776683441455,-150.0,0.00010909,2]
[420871532,1776683441465,-151.0,0.00010915,2]
[420871533,1776683441474,-151.0,0.00010915,2]
[420871534,1776683441483,-77082.65,0.00010918,2]
[420871535,1776683441493,-150.0,0.0001092,2]
[420871536,1776683441503,-150.0,0.0001092,2]
[420871537,1776683441512,-150.0,0.0001095,2]
[420871538,1776683441522,-150.0,0.00010959,2]
[420871539,1776683441531,-150.0,0.00010959,2]
[420871540,1776683441540,-150.0,0.00010976,21]
[420871541,1776683441549,-158.9121914,0.00010976,21]
[420871542,1776683441558,-150.0,0.00010985,2]
[420871543,1776683441567,-150.0,0.00011018,2]
[420871544,1776683441576,-150.0,0.0001104,2]
[420871545,1776683441585,-160.0,0.00011056,2]
[420871546,1776683441594,-1523.647206,0.00011056,2]
[420871547,1776683441603,-2887.294413,0.00011056,2]
[420871548,1776683441614,-160.0,0.00011056,2]
[420871549,1776683441629,-511.130979,0.00011056,2]
[420871550,1776683441638,-862.261959,0.00011056,2]
[420871551,1776683441648,-160.0,0.00011056,2]
[420871552,1776683441657,-363.614341,0.00011056,2]
[420871553,1776683441666,-567.228682,0.00011056,2]
[420871554,1776683441676,-160.0,0.00011056,2]
[420871555,1776683441685,-715.055011,0.00011056,2]
[420871556,1776683441695,-1270.110022,0.00011056,2]
[420871557,1776683441704,-160.0,0.00011056,2]
[420871558,1776683441713,-415.607219,0.00011056,2]
[420871559,1776683441722,-671.214438,0.00011056,2]
[420871560,1776683441732,-160.0,0.00011056,2]
[420871561,1776683441742,-447.654722,0.00011056,2]
[420871562,1776683441751,-735.309444,0.00011056,2]
[420871563,1776683441760,-150.0,0.00011077,2]
[420871564,1776683441770,-164.47,0.00011086,2]
[420871565,1776683441780,-500.0,0.00011099,2]
[420871566,1776683441789,-150.0,0.000111,2]
[420871567,1776683441799,-150.0,0.000111,2]
[420871568,1776683441808,-150.0,0.000111,2]
[420871569,1776683441817,-150.0,0.00011127,2]
[420871570,1776683441827,-150.0,0.0001116,2]
[420871571,1776683441836,-150.0,0.00011169,2]
[420871572,1776683441846,-873.98,0.000112,2]
[420871573,1776683441857,-150.0,0.0001122,2]
[420871574,1776683441867,-150.0,0.00011236,2]
[420871575,1776683441876,-150.0,0.0001125,2]
[420871576,1776683441889,-150.0,0.00011262,2]
[420871577,1776683441899,-150.0,0.0001128,2]
[420871578,1776683441908,-9999.99,0.00011281,2]
[420871579,1776683441918,-1742.63,0.00011281,2]
[420871580,1776683441928,-29999.99,0.00011281,2]
[420871581,1776683441938,-150.0,0.00011345,2]
[420871582,1776683441948,-150.0,0.00011354,2]
[420871583,1776683441958,-231.82878795,0.00011373,2]
[420871584,1776683441968,-150.0,0.000114,2]
[420871585,1776683441977,-150.0,0.000114,2]
[420871586,1776683441986,-150.0,0.000114,2]
[420871587,1776683441996,-150.0,0.000114,2]
[420871588,1776683442006,-150.0,0.000114,2]
[420871589,1776683442016,-150.0,0.00011446,2]
[420871590,1776683442031,-150.0,0.00011455,2]
[420871591,1776683442040,-451.59,0.00011502,2]
[420871592,1776683442049,-150.0,0.0001152,2]
[420871593,1776683442058,-150.0,0.0001152,2]
[420871594,1776683442067,-150.0,0.00011538,2]
[420871595,1776683442077,-150.0,0.0001155,2]
[420871596,1776683442087,-150.0,0.00011564,2]
[420871597,1776683442096,-152.0,0.00011608,5]
[420871598,1776683442105,-2077.700736,0.00011608,2]
[420871599,1776683442115,-696.99679,0.00011608,2]
[420871600,1776683442124,-495.837738,0.00011608,2]
[420871601,1776683442134,-975.075015,0.00011608,2]
[420871602,1776683442143,-566.737117,0.00011608,2]
[420871603,1776683442153,-610.438257,0.00011608,2]
[420871604,1776683442163,-150.0,0.00011631,2]
[420871605,1776683442172,-150.0,0.0001164,2]
[420871606,1776683442181,-150.0,0.00011673,2]
[420871607,1776683442190,-150.0,0.000117,2]
[420871608,1776683442199,-150.0,0.000117,2]
[420871609,1776683442209,-150.0,0.000117,2]
[420871610,1776683442219,-150.0,0.00011723,2]
[420871611,1776683442228,-151.0,0.00011734,2]
[420871612,1776683442238,-816.42321263,0.0001176,2]
[420871613,1776683442248,-150.0,0.0001176,2]
[420871614,1776683442257,-150.0,0.00011782,2]
[420871615,1776683442267,-150.0,0.00011815,2]
[420871616,1776683442277,-150.0,0.0001182,2]
[420871617,1776683442287,-164.47,0.00011825,2]
[420871618,1776683442296,-150.0,0.0001185,2]
[420871619,1776683442306,-150.0,0.0001188,2]
[420871620,1776683442316,-1393.25388,0.0001188,2]
[420871621,1776683442325,-1393.25388,0.0001188,2]
[420871622,1776683442335,-150.0,0.00011891,2]
[420871623,1776683442344,-1336.47598008,0.000119,2]
[420871624,1776683442354,-2000.0,0.00011904,2]
[420871625,1776683442363,-150.0,0.00011908,2]
[420871626,1776683442372,-250.0,0.00011912,2]
[420871627,1776683442382,-171.87754769,0.00011973,2]
[420871628,1776683442392,-500.0,0.00011973,2]
[420871629,1776683442401,-500.0,0.00011973,2]
[420871630,1776683442411,-160.09001763,0.00011973,2]
[420871631,1776683442425,-210.02317478,0.00011973,2]
[420871632,1776683442435,-209.02306443,0.00011973,2]
[420871633,1776683442444,-500.0,0.00011973,2]
[420871634,1776683442454,-500.0,0.00011973,2]
[420871635,1776683442464,-200.02207123,0.00011973,2]
[420871636,1776683442474,-312.24786116,0.00011973,2]
[420871637,1776683442483,-139827.067835,0.00011985,2]
[420871638,1776683442493,-209.71,0.00011988,2]
[420871639,1776683442502,-343.66,0.00011988,2]
[420871640,1776683442512,-240.56,0.00011988,2]
[420871641,1776683442523,-150.0,0.00011988,2]
[420871642,1776683442532,-151.0,0.00011997,2]
[420871643,1776683442542,-151.0,0.00011997,2]
[420871644,1776683442552,-1093.91752428,0.00011999,3]
[420871645,1776683442562,-2021.31084792,0.00011999,2]
[420871646,1776683442619,-500.0801925,0.00011999,2]
[420871647,1776683442632,-8122.76303595,0.00011999,2]
[420871648,1776683442670,-39355.84592363,0.00011999,2]
[420871649,1776683442680,-243.0,0.00012,5]
[420871650,1776683442690,-35402.15407641,0.00012,2]
[420871664,1776683443849,-544.08869123,0.00010714,2]
[420871665,1776683443860,-691.01979971,0.00010714,2]
[420871666,1776683443913,-2543.89150906,0.00010714,2]
[420871667,1776683443922,-758.65902706,0.00012,2]
[420871668,1776683443933,-865.76569316,0.00012,2]
[420871676,1776683451433,-439.13846193,0.0001176,2]
[420871677,1776683451449,-105.14367982,0.0001176,2]
[420871678,1776683451458,-18659.81526167,0.00012,2]